fUSD/lending_fUSD_20251024
["ID","MTS","AMOUNT","RATE_DAILY","PERIOD"]
[392238666,1761274285652,-500.0,0.0004218,30]
[392238667,1761274285664,-500.0,0.0004218,2]
[392238668,1761274285674,-500.0,0.0004218,30]
[392238669,1761274285684,-500.0,0.0004218,30]
[392238670,1761274285694,-500.0,0.0004218,30]
[392238671,1761274285703,-1006.28,0.0004218,30]
[392238672,1761274285712,-500.0,0.0004218,30]
[392238673,1761274285722,-1008.09,0.0004218,30]
[392238674,1761274285733,-692.42,0.0004218,30]
[392238675,1761274285743,-500.0,0.0004218,30]
[392238676,1761274285753,-500.0,0.0004218,30]
[392238677,1761274285764,-500.0,0.0004218,30]
[392238678,1761274285775,-1004.78,0.0004218,30]
[392238679,1761274285785,-637.31,0.0004218,30]
[392238680,1761274285795,-927.24,0.0004218,30]
[392238681,1761274285804,-500.0,0.0004218,30]
[392238682,1761274285814,-500.0,0.0004218,30]
[392238683,1761274285826,-500.0,0.0004218,30]
[392238684,1761274285836,-926.36,0.0004218,30]
[392238685,1761274285845,-500.0,0.0004218,30]
[392238686,1761274285856,-1288.95,0.0004218,30]
[392238687,1761274285867,-639.3905967,0.0004218,30]
[392238688,1761274285876,-500.0,0.0004218,30]
[392238689,1761274285886,-500.0,0.0004218,30]
[392238690,1761274285897,-607.6,0.0004218,30]
[392238691,1761274285908,-500.0,0.0004218,30]
[392238692,1761274285920,-500.0,0.0004218,30]
[392238693,1761274285930,-1181.81,0.0004218,30]
[392238694,1761274285942,-666.42,0.0004218,30]
[392238695,1761274285951,-1000.0,0.0004218,30]
[392238696,1761274285961,-500.0,0.0004218,30]
[392238697,1761274285973,-500.0,0.0004218,30]
[392238698,1761274285987,-500.0,0.0004218,30]
[392238699,1761274285996,-500.0,0.0004218,30]
[392238700,1761274286006,-836.37,0.0004218,30]
[392238701,1761274286016,-500.0,0.0004218,30]
[392238702,1761274286025,-835.85,0.0004218,30]
[392238703,1761274286035,-633.44,0.0004218,30]
[392238704,1761274286044,-960.23,0.0004218,30]
[392238705,1761274286054,-500.0,0.0004218,30]
[392238706,1761274286063,-876.43,0.0004218,30]
[392238707,1761274286078,-500.0,0.0004218,30]
[392238708,1761274286089,-500.0,0.0004218,30]
[392238709,1761274286098,-500.0,0.0004218,30]
[392238710,1761274286107,-500.0,0.0004218,30]
[392238711,1761274286116,-500.0,0.0004218,30]
[392238712,1761274286125,-774.47,0.0004218,30]
[392238713,1761274286135,-500.0,0.0004218,30]
[392238714,1761274286145,-500.0,0.0004218,30]
[392238715,1761274286155,-668.18,0.0004218,30]
[392238716,1761274286164,-500.0,0.0004218,30]
[392238717,1761274286175,-500.0,0.0004218,30]
[392238718,1761274286187,-500.0,0.0004218,30]
[392238719,1761274286197,-713.84,0.0004218,30]
[392238720,1761274286207,-500.0,0.0004218,30]
[392238721,1761274286217,-971.57,0.0004218,30]
[392238722,1761274286227,-896.95,0.0004218,30]
[392238723,1761274286238,-500.0,0.0004218,30]
[392238724,1761274286248,-729.18,0.0004218,30]
[392238725,1761274286258,-500.0,0.0004218,30]
[392238726,1761274286267,-553.98,0.0004218,30]
[392238727,1761274286277,-500.0,0.0004218,30]
[392238728,1761274286287,-855.04,0.0004218,30]
[392238729,1761274286296,-609.14,0.0004218,30]
[392238730,1761274286307,-500.0,0.0004218,30]
[392238731,1761274286318,-500.0,0.0004218,30]
[392238732,1761274286327,-500.0,0.0004218,30]
[392238733,1761274286338,-500.0,0.0004218,30]
[392238734,1761274286348,-763.89,0.0004218,30]
[392238735,1761274286357,-500.0,0.0004218,30]
[392238736,1761274286368,-500.0,0.0004218,30]
[392238737,1761274286377,-158.32,0.00042185,14]
[392238738,1761274286387,-500.0,0.00042188,30]
[392238739,1761274286396,-500.0,0.00042188,30]
[392238740,1761274286405,-500.0,0.00042188,30]
[392238741,1761274286415,-500.0,0.00042188,30]
[392238742,1761274286425,-500.0,0.00042188,30]
[392238743,1761274286434,-500.0,0.00042188,30]
[392238744,1761274286445,-353.28111844,0.00042188,30]
[392238745,1761274286454,-500.0,0.00042188,30]
[392238746,1761274286463,-500.0,0.00042188,30]
[392238747,1761274286472,-500.0,0.00042188,30]
[392238748,1761274286481,-500.0,0.00042188,30]
[392238749,1761274286490,-500.0,0.00042188,30]
[392238750,1761274286499,-500.0,0.00042188,30]
[392238751,1761274286508,-416.53115946,0.00042188,30]
[392238752,1761274286517,-500.0,0.00042188,30]
[392238753,1761274286527,-500.0,0.00042188,30]
[392238754,1761274286536,-500.0,0.00042188,30]
[392238755,1761274286545,-729.84,0.00042188,30]
[392238756,1761274286554,-500.0,0.00042188,30]
[392238757,1761274286563,-500.0,0.00042188,30]
[392238758,1761274286571,-678.0,0.00042188,30]
[392238759,1761274286581,-510.81,0.00042188,30]
[392238760,1761274286590,-541.78,0.00042188,30]
[392238761,1761274286599,-323.74158169,0.00042188,30]
[392238762,1761274286609,-621.31,0.00042188,30]
[392238763,1761274286618,-500.0,0.00042188,30]
[392238764,1761274286627,-506.53,0.00042188,30]
[392238765,1761274286638,-500.0,0.00042188,30]
[392238766,1761274286648,-500.0,0.00042188,30]
[392238767,1761274286657,-500.0,0.00042188,30]
[392238768,1761274286666,-500.0,0.00042188,30]
[392238769,1761274286676,-715.23,0.00042188,30]
[392238770,1761274286684,-500.0,0.00042188,30]
[392238771,1761274286693,-500.0,0.00042188,30]
[392238772,1761274286702,-1107.27,0.00042188,30]
[392238773,1761274286711,-500.0,0.00042188,30]
[392238774,1761274286720,-500.0,0.00042188,30]
[392238775,1761274286729,-681.93,0.00042188,30]
[392238776,1761274286738,-1078.52,0.00042188,30]
[392238777,1761274286747,-500.0,0.00042188,30]
[392238778,1761274286757,-500.0,0.00042188,30]
[392238779,1761274286766,-500.0,0.00042188,30]
[392238780,1761274286775,-500.0,0.00042188,30]
[392238781,1761274287086,-500.0,0.00042188,30]
[392238782,1761274287113,-500.0,0.00042188,30]
[392238783,1761274287125,-699.99,0.00042188,30]
[392238784,1761274287136,-500.0,0.00042188,30]
[392238785,1761274287146,-500.0,0.00042188,30]
[392238786,1761274287155,-500.0,0.00042188,30]
[392238787,1761274287164,-500.0,0.00042188,30]
[392238788,1761274287176,-500.0,0.00042188,30]
[392238789,1761274287185,-500.0,0.00042188,30]
[392238790,1761274287195,-348.90278345,0.00042188,30]
[392238791,1761274287205,-1015.85,0.00042188,30]
[392238792,1761274287215,-500.0,0.00042188,30]
[392238793,1761274287225,-1107.01,0.00042188,30]
[392238794,1761274287237,-500.0,0.00042188,30]
[392238795,1761274287247,-500.0,0.00042188,30]
[392238796,1761274287257,-675.19,0.00042188,30]
[392238797,1761274287267,-500.0,0.00042188,30]
[392238798,1761274287277,-500.0,0.00042188,30]
[392238799,1761274287287,-500.0,0.00042188,30]
[392238800,1761274287297,-524.52,0.00042188,30]
[392238801,1761274287308,-500.0,0.00042188,30]
[392238802,1761274287317,-573.89,0.00042188,30]
[392238803,1761274287327,-500.0,0.00042188,30]
[392238804,1761274287337,-1103.2,0.00042188,30]
[392238805,1761274287347,-822.02,0.00042188,30]
[392238806,1761274287357,-500.0,0.00042188,30]
[392238807,1761274287367,-542.87,0.00042188,30]
[392238808,1761274287377,-500.0,0.00042188,30]
[392238809,1761274287387,-732.83,0.00042188,30]
[392238810,1761274287396,-596.45,0.00042188,30]
[392238811,1761274287405,-826.81,0.00042188,30]
[392238812,1761274287414,-500.0,0.00042188,30]
[392238813,1761274287424,-500.0,0.00042188,30]
[392238814,1761274287434,-500.0,0.00042188,30]
[392238815,1761274287444,-500.0,0.00042188,30]
[392238816,1761274287453,-500.0,0.00042188,30]
[392238817,1761274287463,-523.89,0.00042188,30]
[392238818,1761274287473,-500.0,0.00042188,30]
[392238819,1761274287482,-500.0,0.00042188,30]
[392238820,1761274287491,-1163.69678553,0.00042189,60]
[392238821,1761274287500,-500.0,0.00042189,30]
[392238822,1761274287511,-500.0,0.00042189,30]
[392238823,1761274287521,-500.0,0.00042189,30]
[392238824,1761274287531,-500.0,0.00042189,30]
[392238825,1761274287542,-500.0,0.00042189,30]
[392238826,1761274287552,-500.0,0.00042189,30]
[392238827,1761274287561,-500.0,0.00042189,30]
[392238828,1761274287573,-500.0,0.00042189,30]
[392238829,1761274287583,-500.0,0.00042189,30]
[392238830,1761274287593,-500.0,0.00042189,30]
[392238831,1761274287605,-500.0,0.00042189,30]
[392238832,1761274287615,-500.0,0.00042189,30]
[392238833,1761274287627,-500.0,0.00042189,30]
[392238834,1761274287640,-512.05,0.00042189,30]
[392238835,1761274287651,-500.0,0.00042189,30]
[392238836,1761274287661,-500.0,0.00042189,30]
[392238837,1761274287674,-785.75,0.00042189,30]
[392238838,1761274287684,-981.64,0.00042189,30]
[392238839,1761274287694,-500.0,0.00042189,30]
[392238840,1761274287705,-500.0,0.00042189,30]
[392238841,1761274287714,-500.0,0.00042189,30]
[392238842,1761274287724,-749.5,0.00042189,30]
[392238843,1761274287734,-500.0,0.00042189,30]
[392238844,1761274287745,-500.0,0.00042189,30]
[392238845,1761274287754,-500.0,0.00042189,30]
[392238846,1761274287765,-655.74,0.00042189,30]
[392238847,1761274287775,-500.0,0.00042189,30]
[392238848,1761274287784,-503.85559779,0.00042189,30]
[392238849,1761274287794,-500.0,0.00042189,30]
[392238850,1761274287803,-500.0,0.00042189,30]
[392238851,1761274287812,-660.0,0.00042189,30]
[392238852,1761274287821,-500.0,0.00042189,30]
[392238853,1761274287831,-500.0,0.00042189,30]
[392238854,1761274287840,-664.32,0.00042189,30]
[392238855,1761274287850,-500.0,0.00042189,30]
[392238856,1761274287859,-500.0,0.00042189,30]
[392238857,1761274287870,-504.07716847,0.00042189,30]
[392238858,1761274287882,-500.0,0.00042189,30]
[392238859,1761274287892,-500.0,0.00042189,30]
[392238860,1761274287902,-500.0,0.00042189,30]
[392238861,1761274287912,-501.90970086,0.00042189,30]
[392238862,1761274287922,-500.0,0.00042189,30]
[392238863,1761274287932,-500.0,0.00042189,30]
[392238864,1761274287942,-500.0,0.00042189,30]
[392238865,1761274287951,-607.84,0.00042189,30]
[392238866,1761274287960,-180.14874032,0.00042189,30]
[392238867,1761274287970,-500.0,0.00042189,30]
[392238868,1761274287980,-530.98,0.00042189,30]
[392238869,1761274287991,-500.0,0.00042189,30]
[392238870,1761274288000,-500.0,0.00042189,30]
[392238871,1761274288009,-500.0,0.00042189,30]
[392238872,1761274288019,-500.0,0.00042189,30]
[392238873,1761274288028,-500.0,0.00042189,30]
[392238874,1761274288038,-500.0,0.00042189,30]
[392238875,1761274288048,-504.39781936,0.00042189,30]
[392238876,1761274288059,-500.0,0.00042189,30]
[392238877,1761274288068,-500.0,0.00042189,30]
[392238878,1761274288077,-954.04,0.00042189,30]
[392238879,1761274288086,-500.0,0.00042189,30]
[392238880,1761274288097,-500.0,0.00042189,30]
[392238881,1761274288107,-500.0,0.00042189,30]
[392238882,1761274288118,-500.0,0.00042189,30]
[392238883,1761274288128,-500.0,0.00042189,30]
[392238884,1761274288138,-500.0,0.00042189,30]
[392238885,1761274288148,-500.0,0.00042189,30]
[392238886,1761274288163,-699.33,0.00042189,30]
[392238887,1761274288172,-499.33942245,0.00042189,30]
[392238888,1761274288182,-500.0,0.00042189,30]
[392238889,1761274288192,-962.08,0.00042189,30]
[392238890,1761274288202,-500.0,0.00042189,30]
[392238891,1761274288213,-500.0,0.00042189,30]
[392238892,1761274288222,-500.0,0.00042189,30]
[392238893,1761274288231,-502.05751386,0.00042189,30]
[392238894,1761274288241,-500.0,0.00042189,30]
[392238895,1761274288253,-500.0,0.00042189,30]
[392238896,1761274288262,-500.0,0.00042189,30]
[392238897,1761274288271,-500.0,0.00042189,30]
[392238898,1761274288280,-500.0,0.00042189,30]
[392238899,1761274288290,-500.0,0.00042189,30]
[392238900,1761274288299,-500.0,0.00042189,30]
[392238901,1761274288309,-500.0,0.00042189,30]
[392238902,1761274288318,-779.05,0.00042189,30]
[392238903,1761274288328,-500.0,0.00042189,30]
[392238904,1761274288339,-500.0,0.00042189,30]
[392238905,1761274288348,-553.99,0.00042189,30]
[392238906,1761274288359,-500.0,0.00042189,30]
[392238907,1761274288369,-500.0,0.00042189,30]
[392238908,1761274288379,-500.0,0.00042189,30]
[392238909,1761274288388,-500.0,0.00042189,30]
[392238910,1761274288398,-500.0,0.00042189,30]
[392238911,1761274288409,-500.0,0.00042189,30]
[392238912,1761274288419,-500.0,0.00042189,30]
[392238913,1761274288428,-500.0,0.00042189,30]
[392238914,1761274288437,-500.0,0.00042189,30]
[392238915,1761274288447,-502.16164514,0.00042189,30]
[392238916,1761274288456,-503.73704679,0.00042189,30]
[392238917,1761274288465,-500.0,0.00042189,30]
[392238918,1761274288475,-500.0,0.00042189,30]
[392238919,1761274288484,-500.0,0.00042189,30]
[392238920,1761274288493,-500.0,0.00042189,30]
[392238921,1761274288502,-500.0,0.00042189,30]
[392238922,1761274288511,-968.28,0.00042189,30]
[392238923,1761274288521,-500.0,0.00042189,30]
[392238924,1761274288533,-500.0,0.00042189,30]
[392238925,1761274288542,-500.0,0.00042189,30]
[392238926,1761274288551,-500.0,0.00042189,30]
[392238927,1761274288561,-500.0,0.00042189,30]
[392238928,1761274288570,-500.0,0.00042189,30]
[392238929,1761274288579,-500.0,0.0004219,30]
[392238930,1761274288589,-505.09195949,0.0004219,30]
[392238931,1761274288599,-508.22411345,0.0004219,30]
[392238932,1761274288609,-507.53511915,0.0004219,30]
[392238933,1761274288619,-627.01,0.0004219,30]
[392238934,1761274288633,-500.0,0.0004219,30]
[392238935,1761274288643,-500.0,0.0004219,30]
[392238936,1761274288654,-500.0,0.0004219,30]
[392238937,1761274288665,-500.0,0.0004219,30]
[392238938,1761274288674,-500.0,0.00042191,30]
[392238939,1761274288684,-500.0,0.00042191,30]
[392238940,1761274288694,-500.0,0.00042191,30]
[392238941,1761274288704,-504.2114155,0.00042191,30]
[392238942,1761274288713,-500.0,0.00042191,30]
[392238943,1761274288723,-500.0,0.00042191,30]
[392238944,1761274288733,-1019.83,0.00042191,30]
[392238945,1761274288743,-500.0,0.00042191,30]
[392238946,1761274288755,-962.29,0.00042191,30]
[392238947,1761274288764,-1406.24,0.00042191,30]
[392238948,1761274288774,-567.97,0.00042191,30]
[392238949,1761274288784,-1035.33,0.00042191,30]
[392238950,1761274288794,-500.0,0.00042191,30]
[392238951,1761274288804,-500.0,0.00042191,30]
[392238952,1761274288814,-500.0,0.00042191,30]
[392238953,1761274288825,-500.0,0.00042191,30]
[392238954,1761274288836,-639.76,0.00042191,30]
[392238955,1761274288845,-500.0,0.00042191,30]
[392238956,1761274288855,-692.37,0.00042191,30]
[392238957,1761274288866,-844.94,0.00042191,30]
[392238958,1761274288875,-500.0,0.00042191,30]
[392238959,1761274288884,-507.14,0.00042191,30]
[392238960,1761274288894,-852.17,0.00042191,30]
[392238961,1761274288904,-500.0,0.00042191,30]
[392238962,1761274288914,-543.83,0.00042191,30]
[392238963,1761274288925,-1009.51,0.00042191,30]
[392238964,1761274288935,-500.0,0.00042191,30]
[392238965,1761274288944,-500.0,0.00042191,30]
[392238966,1761274288953,-947.18,0.00042191,30]
[392238967,1761274288963,-805.92,0.00042191,30]
[392238968,1761274288971,-983.23,0.00042191,30]
[392238969,1761274288981,-500.0,0.00042191,30]
[392238970,1761274288990,-500.0,0.00042191,30]
[392238971,1761274288999,-534.6,0.00042191,30]
[392238972,1761274289010,-500.0,0.00042191,30]
[392238973,1761274289019,-500.0,0.00042191,30]
[392238974,1761274289028,-1693.52,0.00042191,30]
[392238975,1761274289037,-500.0,0.00042191,30]
[392238976,1761274289046,-500.0,0.00042191,30]
[392238977,1761274289055,-500.0,0.00042191,30]
[392238978,1761274289064,-500.0,0.00042191,30]
[392238979,1761274289074,-1592.4,0.00042191,30]
[392238980,1761274289084,-500.0,0.00042191,30]
[392238981,1761274289093,-500.0,0.00042191,30]
[392238982,1761274289102,-446.4880523,0.00042191,30]
[392238983,1761274289112,-1001.47,0.00042191,30]
[392238984,1761274289122,-500.0,0.00042191,30]
[392238985,1761274289132,-793.1,0.00042191,30]
[392238986,1761274289143,-413.33567985,0.00042191,30]
[392238987,1761274289152,-500.0,0.00042191,30]
[392238988,1761274289161,-500.0,0.00042191,30]
[392238989,1761274289170,-1093.09,0.00042191,30]
[392238990,1761274289179,-500.0,0.00042191,30]
[392238991,1761274289188,-508.4,0.00042191,30]
[392238992,1761274289198,-500.0,0.00042191,30]
[392238993,1761274289207,-500.0,0.00042191,30]
[392238994,1761274289217,-500.0,0.00042191,30]
[392238995,1761274289227,-500.0,0.00042191,30]
[392238996,1761274289238,-787.98,0.00042191,30]
[392238997,1761274289249,-500.0,0.00042191,30]
[392238998,1761274289259,-500.0,0.00042191,30]
[392238999,1761274289269,-1070.96,0.00042191,30]
[392239000,1761274289279,-500.0,0.00042191,30]
[392239001,1761274289289,-500.0,0.00042191,30]
[392239002,1761274289298,-500.0,0.00042191,30]
[392239003,1761274289307,-916.72,0.00042191,30]
[392239004,1761274289317,-500.0,0.00042191,30]
[392239005,1761274289326,-716.59,0.00042191,30]
[392239006,1761274289336,-500.0,0.00042191,30]
[392239007,1761274289345,-639.77,0.00042191,30]
[392239008,1761274289354,-1101.98,0.00042191,30]
[392239009,1761274289363,-500.0,0.00042191,30]
[392239010,1761274289373,-678.33,0.00042191,30]
[392239011,1761274289382,-850.46,0.00042191,30]
[392239012,1761274289392,-927.52,0.00042191,30]
[392239013,1761274289401,-525.68104418,0.00042191,30]
[392239014,1761274289410,-349.04746837,0.00042191,30]
[392239015,1761274289420,-763.17,0.00042191,30]
[392239016,1761274289429,-500.0,0.00042191,30]
[392239017,1761274289439,-500.0,0.00042191,30]
[392239018,1761274289448,-500.0,0.00042191,30]
[392239019,1761274289458,-598.10478301,0.00042191,30]
[392239020,1761274289467,-570.5,0.00042191,30]
[392239021,1761274289476,-500.0,0.00042191,30]
[392239022,1761274289485,-500.0,0.00042191,30]
[392239023,1761274289573,-500.0,0.00042191,30]
[392239024,1761274289583,-500.0,0.00042191,30]
[392239025,1761274289592,-754.43,0.00042191,30]
[392239026,1761274289602,-500.0,0.00042191,30]
[392239027,1761274289611,-702.42,0.00042191,30]
[392239028,1761274289620,-500.0,0.00042191,30]
[392239029,1761274289632,-500.0,0.00042191,30]
[392239030,1761274289641,-500.0,0.00042191,30]
[392239031,1761274289651,-169.77,0.00042191,30]
[392239032,1761274289660,-500.0,0.00042191,30]
[392239033,1761274289668,-255.39363225,0.00042191,30]
[392239034,1761274289678,-500.0,0.00042191,30]
[392239035,1761274289687,-500.0,0.00042191,30]
[392239036,1761274289698,-500.0,0.00042191,30]
[392239037,1761274289708,-500.0,0.00042191,30]
[392239038,1761274289718,-1004.51,0.00042191,30]
[392239039,1761274289728,-500.0,0.00042191,30]
[392239040,1761274289739,-500.0,0.00042191,30]
[392239041,1761274289750,-500.0,0.00042191,30]
[392239042,1761274289759,-500.0,0.00042191,30]
[392239043,1761274289769,-500.0,0.00042191,30]
[392239044,1761274289778,-691.31,0.00042191,30]
[392239045,1761274289787,-500.0,0.00042191,30]
[392239046,1761274289795,-500.0,0.00042191,30]
[392239047,1761274289804,-545.98,0.00042191,30]
[392239048,1761274289813,-500.0,0.00042191,30]
[392239049,1761274289822,-500.0,0.00042191,30]
[392239050,1761274289831,-938.21,0.00042191,30]
[392239051,1761274289840,-500.0,0.00042191,30]
[392239052,1761274289849,-500.0,0.00042191,30]
[392239053,1761274289859,-500.0,0.00042191,30]
[392239054,1761274289867,-500.0,0.00042191,30]
[392239055,1761274289877,-500.0,0.00042191,30]
[392239056,1761274289886,-500.0,0.00042191,30]
[392239057,1761274289895,-894.52,0.00042191,30]
[392239058,1761274289905,-500.0,0.00042191,30]
[392239059,1761274289914,-500.0,0.00042191,30]
[392239060,1761274289924,-500.0,0.00042191,30]
[392239061,1761274289934,-500.0,0.00042191,30]
[392239062,1761274289944,-500.0,0.00042191,30]
[392239063,1761274289954,-500.0,0.00042191,30]
[392239064,1761274289963,-500.0,0.00042191,30]
[392239065,1761274289973,-500.0,0.00042191,30]
[392239066,1761274289982,-500.0,0.00042191,30]
[392239067,1761274289992,-500.0,0.00042191,30]
[392239068,1761274290003,-585.16,0.00042191,30]
[392239069,1761274290012,-500.0,0.00042191,30]
[392239070,1761274290023,-500.0,0.00042191,30]
[392239071,1761274290033,-500.0,0.00042191,30]
[392239072,1761274290043,-407.49669171,0.00042191,30]
[392239073,1761274290054,-500.0,0.00042191,30]
[392239074,1761274290064,-500.0,0.00042191,30]
[392239075,1761274290073,-500.0,0.00042191,30]
[392239076,1761274290083,-500.0,0.00042191,30]
[392239077,1761274290093,-500.0,0.00042191,30]
[392239078,1761274290102,-946.05,0.00042191,30]
[392239079,1761274290111,-406.81302773,0.00042191,30]
[392239080,1761274290121,-500.0,0.00042191,30]
[392239081,1761274290130,-500.0,0.00042191,30]
[392239082,1761274290140,-500.0,0.00042191,30]
[392239083,1761274290149,-500.0,0.00042191,30]
[392239084,1761274290158,-500.0,0.00042191,30]
[392239085,1761274290168,-500.0,0.00042191,30]
[392239086,1761274290177,-500.0,0.00042191,30]
[392239087,1761274290186,-500.0,0.00042191,30]
[392239088,1761274290196,-500.0,0.00042191,30]
[392239089,1761274290207,-686.05,0.00042191,30]
[392239090,1761274290216,-500.0,0.00042191,30]
[392239091,1761274290226,-174.06947018,0.00042191,30]
[392239092,1761274290236,-500.0,0.00042191,30]
[392239093,1761274290245,-500.0,0.00042191,30]
[392239094,1761274290255,-500.0,0.00042191,30]
[392239095,1761274290264,-500.0,0.00042191,30]
[392239096,1761274290273,-797.86,0.00042191,30]
[392239097,1761274290282,-550.07,0.00042191,30]
[392239098,1761274290291,-618.53,0.00042191,30]
[392239099,1761274290301,-500.0,0.00042191,30]
[392239100,1761274290311,-697.84,0.00042191,30]
[392239101,1761274290320,-500.0,0.00042191,30]
[392239102,1761274290329,-500.0,0.00042191,30]
[392239103,1761274290339,-500.0,0.00042191,30]
[392239104,1761274290348,-500.0,0.00042191,6]
[392239105,1761274290358,-500.0,0.00042191,30]
[392239106,1761274290367,-1056.48,0.00042191,30]
[392239107,1761274290377,-500.0,0.00042191,30]
[392239108,1761274290386,-500.0,0.00042191,30]
[392239109,1761274290396,-500.0,0.00042191,30]
[392239110,1761274290405,-500.0,0.00042191,30]
[392239111,1761274290415,-188.27175798,0.00042191,30]
[392239112,1761274290424,-500.0,0.00042191,30]
[392239113,1761274290434,-284.15941066,0.00042191,30]
[392239114,1761274290443,-500.0,0.00042191,30]
[392239115,1761274290453,-591.1,0.00042191,30]
[392239116,1761274290463,-500.0,0.00042191,30]
[392239117,1761274290473,-500.0,0.00042191,30]
[392239118,1761274290482,-500.0,0.00042191,30]
[392239119,1761274290491,-500.0,0.00042191,30]
[392239120,1761274290501,-500.0,0.00042191,30]
[392239121,1761274290510,-500.0,0.00042191,30]
[392239122,1761274290519,-500.0,0.00042191,30]
[392239123,1761274290528,-500.0,0.00042191,30]
[392239124,1761274290537,-808.51,0.00042191,30]
[392239125,1761274290546,-500.0,0.00042191,30]
[392239126,1761274290555,-998.82,0.00042191,30]
[392239127,1761274290564,-949.73,0.00042191,30]
[392239128,1761274290574,-863.61,0.00042191,30]
[392239129,1761274290583,-500.0,0.00042191,30]
[392239130,1761274290593,-500.0,0.00042191,30]
[392239131,1761274290602,-500.0,0.00042191,30]
[392239132,1761274290611,-929.56,0.00042191,30]
[392239133,1761274290620,-500.0,0.00042191,30]
[392239134,1761274290631,-500.0,0.00042191,30]
[392239135,1761274290641,-500.0,0.00042191,30]
[392239136,1761274290651,-828.45,0.00042191,30]
[392239137,1761274290660,-500.0,0.00042191,30]
[392239138,1761274290668,-500.0,0.00042191,30]
[392239139,1761274290678,-500.0,0.00042191,30]
[392239140,1761274290687,-519.68,0.00042191,30]
[392239141,1761274290696,-500.0,0.00042191,30]
[392239142,1761274290705,-500.0,0.00042191,30]
[392239143,1761274290715,-611.28,0.00042191,30]
[392239144,1761274290725,-500.0,0.00042191,30]
[392239145,1761274290735,-684.24,0.00042191,30]
[392239146,1761274290744,-500.0,0.00042191,30]
[392239147,1761274290753,-500.0,0.00042191,30]
[392239148,1761274290762,-500.0,0.00042191,30]
[392239149,1761274290771,-500.0,0.00042191,30]
[392239150,1761274290780,-948.08,0.00042191,30]
[392239151,1761274290790,-726.47,0.00042191,30]
[392239152,1761274290800,-500.0,0.00042191,30]
[392239153,1761274290809,-500.0,0.00042191,30]
[392239154,1761274290818,-1168.58,0.00042191,30]
[392239155,1761274290828,-500.0,0.00042191,30]
[392239156,1761274290837,-500.0,0.00042191,30]
[392239157,1761274290847,-500.0,0.00042191,30]
[392239158,1761274290855,-383.55417447,0.00042191,30]
[392239159,1761274290864,-564.19,0.00042191,30]
[392239160,1761274290873,-500.0,0.00042191,30]
[392239161,1761274290883,-780.47,0.00042191,30]
[392239162,1761274290892,-500.0,0.00042191,30]
[392239163,1761274290900,-500.0,0.00042191,30]
[392239164,1761274290910,-1042.94,0.00042191,30]
[392239165,1761274290919,-500.0,0.00042191,30]